bitfinex-derivatives/quotes_SOLF0:USTF0_20241002
["timestamp","ask_amount","ask_price","bid_price","bid_amount"]
[1727906735915,0.12502,140.51,140.48,1.3731]
[1727906736210,0.12502,140.51,140.5,3.5592]
[1727906736616,1.0,140.53,140.52,3.5587]
[1727906737013,1.0,140.55,140.52,5.72]
[1727906737216,1.0,140.55,140.5,7.42590611]
[1727906737513,1.0,140.55,140.49,2.6452]
[1727906737711,1.0,140.55,140.49,6.2046]
[1727906737712,3.5588,140.52,140.49,6.2046]
[1727906738314,1.0,140.55,140.49,2.6452]
[1727906738514,3.5585,140.53,140.5,3.559]
[1727906739115,3.5582,140.54,140.51,3.5588]
[1727906740015,3.5585,140.53,140.5,3.5591]
[1727906740917,3.5587,140.52,140.5,3.5591]
[1727906741417,3.5587,140.52,140.49,6.2045]
[1727906741626,1.0,140.55,140.49,2.6452]
[1727906741917,3.5586,140.53,140.49,2.6452]
[1727906742918,3.5586,140.53,140.5,3.5592]
[1727906743109,1.0,140.55,140.48,1.3731]
[1727906743710,3.5591,140.51,140.48,1.3731]
[1727906743919,3.5591,140.51,140.48,4.9327]
[1727906745309,22.8,140.52,140.45,0.12502]
[1727906745916,22.8,140.52,140.46,3.5602]
[1727906746615,22.8,140.52,140.45,3.68532]
[1727906746914,22.8,140.52,140.45,0.12502]
[1727906747221,3.5602,140.46,140.45,0.12502]
[1727906750220,3.5616,140.41,140.39,2.90482]
[1727906751127,3.5614,140.42,140.39,2.90482]
[1727906751730,3.5607,140.45,140.42,3.561]
[1727906751925,7.1249,140.48,140.43,17.1]
[1727906752226,5.7,140.48,140.43,17.1]
[1727906752920,3.5601,140.47,140.44,3.5606]
[1727906755025,9.2598,140.48,140.45,3.5605]
[1727906755523,5.7,140.48,140.45,3.5605]
[1727906756024,5.7,140.48,140.43,17.1]
[1727906756324,5.7,140.48,140.46,3.5602]
[1727906757236,3.5593,140.5,140.43,17.1]
[1727906757728,3.5593,140.5,140.46,3.56]
[1727906758727,6.82502,140.51,140.46,3.56]
[1727906759030,6.82502,140.51,140.45,20.6603]
[1727906759327,6.82502,140.51,140.45,17.1]
[1727906760229,3.5596,140.49,140.46,3.5602]
[1727906761321,3.5594,140.5,140.43,3.5609]
[1727906761627,23.92502,140.51,140.42,17.1]
[1727906762329,23.92502,140.51,140.41,22.82]
[1727906762525,17.1,140.47,140.39,2.90482]
[1727906762722,7.0033,140.46,140.39,2.90482]
[1727906763327,3.5611,140.43,140.4,3.5616]
[1727906763934,7.0033,140.46,140.39,2.90482]
[1727906764240,5.7,140.48,140.41,17.1]
[1727906764728,5.7,140.48,140.39,2.90482]
[1727906764927,17.1,140.47,140.39,2.90482]
[1727906765735,3.5611,140.43,140.4,3.5616]
[1727906768335,3.5606,140.45,140.42,3.5612]
[1727906768935,3.5609,140.44,140.39,2.90482]
[1727906769834,3.5609,140.44,140.4,3.5615]
[1727906771540,9.17266932,140.48,140.39,20.00482]
[1727906771834,3.5605,140.45,140.42,3.5611]
[1727906775131,3.5607,140.44,140.42,3.5611]
[1727906775630,3.5607,140.44,140.39,20.00482]
[1727906775631,3.5607,140.44,140.41,3.5614]
[1727906779039,5.7,140.46,140.39,5.02582]
[1727906779228,5.7,140.46,140.39,1.46392]
[1727906779430,5.7,140.46,140.39,0.12502]
[1727906779635,3.5616,140.41,140.39,0.12502]
[1727906779949,10.59226932,140.48,140.39,0.12502]
[1727906779950,5.7,140.42,140.39,0.12502]
[1727906780141,17.1,140.43,140.39,0.12502]
[1727906780142,5.7,140.41,140.39,0.12502]
[1727906780441,3.5617,140.4,140.39,0.12502]
[1727906787149,22.8,140.41,140.33,0.12502]
[1727906787445,17.1,140.37,140.33,0.12502]
[1727906787743,3.5633,140.34,140.33,0.12502]
[1727906788043,17.1,140.35,140.27,18.22602]
[1727906788350,3.564,140.31,140.27,18.22602]
[1727906788740,3.564,140.31,140.27,1.12602]
[1727906789046,17.1,140.31,140.27,1.12602]
[1727906789349,3.5648,140.28,140.27,1.12602]
[1727906789851,5.7,140.32,140.27,1.12602]
[1727906790349,17.1,140.33,140.27,1.12602]
[1727906790550,5.7,140.32,140.27,1.12602]
[1727906790741,17.1,140.31,140.27,1.12602]
[1727906790943,3.5648,140.28,140.27,1.12602]
[1727906791144,9.2648,140.28,140.27,1.12602]
[1727906791342,22.8,140.28,140.25,1.001]
[1727906791546,3.5653,140.26,140.25,1.001]
[1727906794136,17.1,140.26,140.22,1.001]
[1727906794336,17.1,140.24,140.2,1.001]
[1727906794543,17.1,140.21,140.18,1.001]
[1727906794850,3.5671,140.19,140.18,1.001]
[1727906795159,3.5671,140.19,140.15,1.12602]
[1727906795160,5.7,140.19,140.15,1.12602]
[1727906795353,3.5678,140.16,140.15,1.12602]
[1727906797353,17.1,140.16,140.1,1.001]
[1727906797541,3.5683,140.14,140.1,1.001]
[1727906798249,20.6683,140.14,140.1,1.001]
[1727906798454,3.5691,140.11,140.1,1.001]
[1727906798752,5.7,140.11,140.1,1.001]
[1727906799157,17.1,140.17,140.1,1.001]
[1727906799338,5.7,140.16,140.1,1.001]
[1727906799540,17.1,140.17,140.1,1.001]
[1727906799743,3.568,140.16,140.1,18.101]
[1727906799949,5.7,140.17,140.1,18.101]
[1727906800452,5.7,140.17,140.1,1.001]
[1727906800656,22.8,140.17,140.1,1.001]
[1727906801647,5.7,140.17,140.1,1.001]
[1727906801849,3.5683,140.15,140.1,4.5703]
[1727906802052,5.7,140.17,140.1,1.001]
[1727906803651,3.5688,140.13,140.1,1.001]
[1727906804857,3.5681,140.15,140.1,1.001]
[1727906805556,3.5681,140.15,140.11,3.569]
[1727906806151,5.7,140.17,140.1,1.001]
[1727906806353,3.568,140.16,140.12,3.5688]
[1727906806853,5.7,140.17,140.1,1.001]
[1727906807756,3.5688,140.13,140.1,1.001]
[1727906808057,5.7,140.17,140.1,1.001]
[1727906808351,3.5684,140.14,140.1,4.5702]
[1727906808557,5.7,140.17,140.1,1.001]
[1727906809054,3.5682,140.15,140.11,3.5691]
[1727906809262,6.72,140.18,140.1,1.001]
[1727906809556,6.72,140.18,140.1,6.721]
[1727906810356,6.72,140.18,140.1,1.001]
[1727906810557,27.43,140.16,140.1,1.001]
[1727906810756,27.43,140.14,140.1,1.001]
[1727906811055,3.5691,140.11,140.1,1.001]
[1727906811658,3.5691,140.11,140.08,1.001]
[1727906811659,27.43,140.11,140.08,1.001]
[1727906811855,1.0,140.18,140.04,0.12518]
[1727906811856,27.43,140.09,140.04,0.12518]
[1727906812156,5.72,140.08,140.04,0.12518]
[1727906812359,3.5704,140.06,140.04,0.12518]
[1727906812549,27.43,140.06,140.04,0.12518]
[1727906812757,27.43,140.06,140.0,1.001]
[1727906812961,3.5716,140.02,140.0,1.001]
[1727906813167,3.56933841,140.08,140.0,1.001]
[1727906813455,5.72,140.07,140.0,1.001]
[1727906813651,27.43,140.06,140.0,1.001]
[1727906814266,1.0,140.06,140.0,1.001]
[1727906814561,3.5711,140.04,140.0,1.001]
[1727906814768,5.72,140.05,140.0,1.001]
[1727906814956,3.5713,140.03,140.0,1.001]
[1727906815560,5.72,140.05,140.0,1.001]
[1727906816062,27.43,140.04,140.0,1.001]
[1727906816755,3.5717,140.01,140.0,1.001]
[1727906816960,9.3317,140.01,140.0,1.001]
[1727906817466,3.5722,139.99,139.97,0.12502]
[1727906817669,31.0022,139.99,139.97,0.12502]
[1727906819057,5.76,139.99,139.97,0.12502]
[1727906820358,3.5717,140.01,139.97,0.12502]
[1727906820557,5.76,140.03,139.97,0.12502]
[1727906820760,5.76,140.05,139.99,2.7324]
[1727906821261,9.3308,140.05,139.99,6.3045]
[1727906822469,5.76,140.05,139.99,2.7324]
[1727906823150,3.571,140.04,139.99,2.7324]
[1727906824960,3.571,140.04,139.99,6.3044]
[1727906825173,5.76,140.05,139.99,2.7324]
[1727906825367,1.0,140.06,139.99,30.1624]
[1727906825851,5.76,140.08,140.04,3.5708]
[1727906826054,5.76,140.08,139.99,30.1624]
[1727906826055,5.76,140.08,140.01,5.76]
[1727906826459,5.76,140.08,140.04,3.5707]
[1727906826651,0.12502,140.09,140.04,3.5707]
[1727906826851,9.45472,140.09,140.01,5.76]
[1727906827066,5.88502,140.09,140.01,5.76]
[1727906827268,27.43,140.08,139.99,2.7324]
[1727906827569,27.43,140.01,139.98,1.001]
[1727906827765,5.76,140.0,139.98,1.001]
[1727906828065,5.76,140.0,139.97,0.12502]
[1727906828066,27.43,139.99,139.97,0.12502]
[1727906828364,0.12502,140.03,139.93,6.761]
[1727906828670,0.12502,140.03,139.96,4.2041]
[1727906828864,27.55502,140.03,139.96,2.7681]
[1727906829462,27.43,140.0,139.93,1.001]
[1727906829767,6.12,139.99,139.93,1.001]
[1727906830166,1.0,140.02,139.93,1.001]
[1727906830367,1.0,140.02,139.93,7.121]
[1727906830568,3.5721,140.0,139.93,7.121]
[1727906830768,7.12,140.02,139.94,3.5734]
[1727906830967,10.73089639,140.02,139.93,1.001]
[1727906831274,27.43,140.01,139.93,1.001]
[1727906831567,3.5721,140.0,139.93,1.001]
[1727906831773,27.43,140.01,139.93,1.001]
[1727906832566,3.5726,139.98,139.93,4.5747]
[1727906833373,3.5723,139.99,139.93,1.001]
[1727906833777,27.43,140.01,139.93,1.001]
[1727906833973,3.5717,140.01,139.96,3.5728]
[1727906834285,9.6917,140.01,139.96,3.5728]
[1727906834777,9.81642,140.03,139.95,7.121]
[1727906835083,6.24502,140.03,139.95,7.121]
[1727906835273,6.24502,140.03,139.99,3.572]
[1727906835965,6.24502,140.03,139.95,7.121]
[1727906836170,6.24502,140.03,140.0,3.5718]
[1727906836980,6.24502,140.03,139.95,7.121]
[1727906837280,6.24502,140.09,140.0,27.43]
[1727906837469,6.24502,140.09,140.01,8.8486]
[1727906837668,33.67502,140.09,140.01,8.8486]
[1727906838174,33.67502,140.09,140.02,3.5713]
[1727906838378,3.5703,140.07,140.02,3.5713]
[1727906839280,33.67502,140.09,140.01,8.8486]
[1727906839480,6.24502,140.09,140.01,8.8486]
[1727906840191,6.24502,140.09,140.01,2.7286]
[1727906840397,33.67502,140.09,140.01,2.7286]
[1727906840608,3.5702,140.07,140.02,3.5713]
[1727906840892,33.67502,140.09,140.02,3.5713]
[1727906841397,0.12502,140.09,140.04,3.5709]
[1727906841894,3.5701,140.07,140.01,2.7286]
[1727906842092,0.12502,140.09,140.01,2.7286]
[1727906842791,0.12502,140.09,140.05,3.5706]
[1727906843302,3.69482,140.09,140.05,3.5706]
[1727906843485,0.12502,140.09,140.01,2.7286]
[1727906843790,0.12502,140.09,140.04,3.5708]
[1727906843791,3.5699,140.08,140.04,3.5708]
[1727906844387,3.69472,140.09,140.05,3.5705]
[1727906844588,0.12502,140.09,140.03,6.12]
[1727906844984,0.12502,140.09,140.06,3.5703]
[1727906845184,0.12502,140.09,140.03,6.12]
[1727906845596,0.12502,140.09,140.07,3.5701]
[1727906848600,0.12502,140.09,140.08,3.5699]
[1727906850100,6.12,140.16,140.07,6.12]
[1727906850301,6.12,140.16,140.08,2.7534]
[1727906851005,27.43,140.17,140.08,2.7534]
[1727906851316,1.24942,140.21,140.08,2.7534]
[1727906851317,6.12,140.18,140.08,2.7534]
[1727906851501,3.69322,140.15,140.08,2.7534]
[1727906851808,0.12502,140.15,140.08,2.7534]
[1727906852006,3.5685,140.14,140.08,2.7534]
[1727906852708,3.5685,140.14,140.1,3.5692]
[1727906853012,3.69332,140.15,140.08,2.7534]
[1727906853311,0.12502,140.15,140.12,3.5687]
[1727906854206,0.12502,140.15,140.08,2.7534]
[1727906854405,3.69322,140.15,140.11,3.569]
[1727906857012,0.12502,140.15,140.11,6.12]
[1727906857307,3.5675,140.18,140.14,3.5683]
[1727906857613,3.5675,140.18,140.15,2.7727]
[1727906858307,3.5675,140.18,140.15,6.3407]
[1727906859109,3.5672,140.19,140.15,6.3407]
[1727906859908,3.5675,140.18,140.15,2.7727]
[1727906860114,1.12502,140.21,140.15,2.7727]
[1727906860614,3.5675,140.18,140.15,2.7727]
[1727906861118,1.12502,140.21,140.18,3.5672]
[1727906861306,1.12502,140.21,140.15,8.7927]
[1727906862314,1.12502,140.21,140.17,3.5674]
[1727906862715,4.69182,140.21,140.17,3.5674]
[1727906862920,1.12502,140.21,140.17,3.5674]
[1727906863219,3.5668,140.2,140.17,3.5674]
[1727906863809,1.12502,140.21,140.16,1.3426]
[1727906864314,1.12502,140.21,140.15,2.7727]
[1727906864512,3.5678,140.17,140.15,2.7727]
[1727906866313,3.5675,140.18,140.15,2.7727]
[1727906867312,1.12502,140.21,140.15,2.7727]
[1727906867513,3.5672,140.19,140.15,2.7727]
[1727906867714,3.5672,140.19,140.17,3.5675]
[1727906867915,3.5674,140.18,140.15,2.7727]
[1727906868115,3.5674,140.18,140.16,3.5677]
[1727906871227,3.567,140.2,140.15,2.7727]
[1727906871515,1.12502,140.21,140.15,2.7727]
[1727906871724,18.25502,140.21,140.15,2.7727]
[1727906872022,3.5677,140.17,140.15,2.7727]
[1727906872216,3.5677,140.17,140.15,6.3407]
[1727906873627,3.567,140.2,140.15,2.7727]
[1727906873819,18.25502,140.21,140.15,2.7727]
[1727906874422,3.5675,140.18,140.15,6.3407]
[1727906874823,18.25502,140.21,140.17,3.5675]
[1727906874824,3.5672,140.19,140.17,3.5675]
[1727906875125,17.13,140.19,140.12,1.4281]
[1727906875314,17.13,140.19,140.1,17.13]
[1727906875315,17.13,140.17,140.1,6.3125]
[1727906875721,17.13,140.16,140.1,2.7433]
[1727906875923,3.5691,140.11,140.09,0.12502]
[1727906876910,3.5691,140.11,140.09,3.69462]
[1727906877115,3.5691,140.11,140.09,0.12502]
[1727906877316,17.13,140.14,140.09,0.12502]
[1727906877627,3.5694,140.1,140.09,0.12502]
[1727906879023,3.5694,140.1,140.03,0.12502]
[1727906879024,17.13,140.1,140.03,0.12502]
[1727906879223,17.13,140.08,140.03,0.12502]
[1727906879624,27.42,140.09,140.03,0.12502]
[1727906880734,27.42,140.07,140.03,0.12502]
[1727906880927,6.02,140.06,140.03,0.12502]
[1727906882232,3.5709,140.04,140.03,0.12502]
[1727906884525,6.02,140.05,140.03,0.12502]
[1727906884729,3.64500732,140.08,140.03,0.12502]
[1727906885027,6.02,140.07,140.03,0.12502]
[1727906886333,3.5709,140.04,140.03,0.12502]
[1727906888937,3.5724,139.99,139.97,0.12502]
[1727906889131,6.04,140.02,139.97,0.12502]
[1727906889433,3.5724,139.98,139.97,0.12502]
[1727906890127,9.5724,139.98,139.97,0.12502]
[1727906890536,36.9924,139.98,139.97,0.12502]
[1727906890835,3.5729,139.96,139.95,1.001]
[1727906892228,27.54502,140.03,139.95,1.001]
[1727906892434,6.0,140.02,139.95,1.001]
[1727906893134,27.54502,140.03,139.95,10.5741]
[1727906893135,3.5722,140.0,139.95,10.5741]
[1727906893329,6.0,140.02,139.95,1.001]
[1727906894033,27.42,140.01,139.95,1.001]
[1727906894338,3.5729,139.96,139.95,1.001]
[1727906894537,27.42,140.01,139.95,1.001]
[1727906894735,6.0,140.02,139.95,1.001]
[1727906894935,27.54502,140.03,139.95,1.001]
[1727906895132,6.0,140.02,139.95,1.001]
[1727906895436,3.5723,139.99,139.95,4.574]
[1727906896628,6.0,140.02,139.95,1.001]
[1727906897638,3.5723,139.99,139.95,1.001]
[1727906898138,6.0,140.02,139.95,1.001]
[1727906899140,3.5727,139.97,139.95,1.001]
[1727906900542,6.0,140.02,139.95,1.001]
[1727906900738,3.5729,139.96,139.95,1.001]
[1727906903242,30.9929,139.96,139.95,1.001]
[1727906903639,20.7429,139.96,139.95,1.001]
[1727906904343,3.5734,139.94,139.93,1.001]
[1727906904531,26.7434,139.94,139.93,1.001]
[1727906904933,9.5734,139.94,139.93,1.001]
[1727906905337,6.0,139.94,139.93,1.001]
[1727906905540,3.57331706,140.0,139.93,1.001]
[1727906905541,6.0,139.97,139.93,1.001]
[1727906905744,6.0,139.99,139.93,1.001]
[1727906906043,6.38,140.01,139.93,1.001]
[1727906906242,28.46,140.06,139.94,33.84]
[1727906906448,34.84,140.06,139.96,3.5728]
[1727906906638,34.84,140.06,139.94,40.975]
[1727906906945,3.5711,140.04,139.99,3.572]
[1727906907332,3.69622,140.03,139.98,6.38]
[1727906907530,3.69622,140.03,139.99,6.2038]
[1727906907734,3.69622,140.03,139.99,2.6318]
[1727906908538,3.69622,140.03,140.0,3.5718]
[1727906908738,0.12502,140.03,139.99,3.9621]
[1727906909139,0.12502,140.03,140.0,3.5719]
[1727906909443,0.12502,140.03,139.99,3.9621]
[1727906909844,0.12502,140.03,140.0,3.5719]
[1727906910046,0.12502,140.03,139.99,3.9621]
[1727906910448,0.12502,140.03,140.0,3.5719]
[1727906910648,0.12502,140.03,139.99,3.9621]
[1727906911147,0.12502,140.03,140.0,3.5717]
[1727906911540,3.69632,140.03,139.99,3.9621]
[1727906912345,3.69632,140.03,140.0,3.5717]
[1727906915750,0.12502,140.03,139.99,3.9621]
[1727906915947,0.12502,140.03,140.01,3.5714]
[1727906916351,0.12502,140.03,139.99,3.9621]
[1727906916555,3.69632,140.03,140.0,3.5718]
[1727906918760,3.69632,140.03,140.01,3.5716]
[1727906919347,0.12502,140.03,140.01,3.5716]
[1727906921155,0.12502,140.03,139.99,3.9621]
[1727906921353,0.12502,140.09,139.99,3.9621]
[1727906921653,27.46,140.08,139.99,3.9621]
[1727906921849,3.571,140.04,140.01,3.5715]
[1727906927267,17.14,140.07,140.0,6.38]
[1727906927963,3.5714,140.03,140.0,9.9518]
[1727906928355,23.52,140.07,139.99,3.9621]
[1727906928664,17.14,140.01,139.97,0.12502]
[1727906929362,6.38,140.02,139.97,0.12502]
[1727906929363,3.5724,139.98,139.97,0.12502]
[1727906930155,9.9524,139.98,139.97,0.12502]
[1727906930365,3.5734,139.94,139.93,1.001]
[1727906932869,6.38,139.99,139.93,1.001]
[1727906934071,3.5732,139.96,139.93,1.001]
[1727906934572,0.12502,140.03,139.94,17.14]
[1727906934573,6.38,140.01,139.94,17.14]
[1727906934868,17.14,140.02,139.94,17.14]
[1727906935178,6.38,140.02,139.96,3.5729]
[1727906935465,6.38,140.02,139.97,3.5725]
[1727906935671,23.52502,140.03,139.97,3.5725]
[1727906936471,23.52502,140.03,139.96,2.7834]
[1727906936673,3.572,140.0,139.96,6.3562]
[1727906937972,23.52502,140.03,139.96,2.7834]
[1727906938166,3.5724,139.99,139.96,2.7834]
[1727906938566,3.5726,139.98,139.96,2.7834]
[1727906939776,3.5718,140.01,139.96,2.7834]
[1727906940169,0.12502,140.03,139.96,2.7834]
[1727906940877,3.5721,140.0,139.96,6.3562]
[1727906941282,3.5718,140.01,139.97,3.5725]
[1727906941477,3.5718,140.01,139.97,9.8325]
[1727906941668,0.12502,140.03,139.97,6.26]
[1727906941871,3.5723,139.99,139.97,6.26]
[1727906943682,17.14,140.02,139.96,2.7834]
[1727906943880,3.5727,139.97,139.96,1.43]
[1727906948377,3.5727,139.97,139.96,8.61346926]
[1727906948574,3.5727,139.97,139.96,1.43]
[1727906948779,0.12502,140.03,139.96,8.61346926]
[1727906948983,3.5724,139.99,139.96,1.43]
[1727906949298,3.5724,139.99,139.96,8.61346926]
[1727906949492,0.12502,140.03,139.97,17.14]
[1727906949796,0.12502,140.03,139.98,16.18316926]
[1727906949989,0.12502,140.03,139.98,8.9997]
[1727906950189,3.5715,140.02,139.99,3.572]
[1727906950592,3.5718,140.01,139.99,10.75668587]
[1727906950788,3.5718,140.01,139.99,3.572]
[1727906952096,3.5718,140.01,139.99,10.75664251]
[1727906952498,0.12502,140.03,139.98,8.9997]
[1727906952797,0.12502,140.03,140.0,3.5717]
[1727906952798,3.69632,140.03,140.0,3.5717]
[1727906953994,3.69632,140.03,139.99,17.14]
[1727906954291,3.69632,140.03,140.0,10.75533105]
[1727906955197,0.12502,140.03,140.0,7.18343105]
[1727906955399,0.12502,140.03,140.02,3.5714]
[1727906955699,0.12502,140.03,140.02,4.9018]
[1727906958794,0.12502,140.03,140.02,3.5714]
[1727906959101,3.5715,140.02,140.0,13.44153084]
[1727906959500,3.5715,140.02,140.0,6.26]
[1727906960698,0.12502,140.03,140.0,6.26]
[1727906960903,3.69632,140.03,140.0,9.8317]
[1727906961204,0.12502,140.03,140.0,13.44245198]
[1727906961907,0.12502,140.03,140.0,13.44312299]
[1727906962111,0.12502,140.03,140.01,3.5715]
[1727906967312,0.12502,140.03,140.0,6.26]
[1727906967815,0.12502,140.03,140.01,3.5715]
[1727906971108,0.12502,140.03,139.98,4.0645]
[1727906971309,17.26502,140.03,139.99,7.18674919]
[1727906971509,17.26502,140.03,139.97,6.04]
[1727906971809,17.26502,140.03,139.94,2.7763]
[1727906971810,17.26502,140.03,139.96,13.227934]
[1727906972009,17.14,140.01,139.97,7.187934]
[1727906972207,3.5724,139.98,139.95,13.22802099]
[1727906972404,3.5724,139.98,139.96,7.18802099]
[1727906972612,3.5724,139.98,139.95,6.04]
[1727906972807,3.5724,139.98,139.96,7.18921866]
[1727906973009,3.5724,139.98,139.95,6.04]
[1727906973412,17.14,140.01,139.96,7.18936174]
[1727906973716,3.5727,139.97,139.95,6.04]
[1727906974007,3.5727,139.97,139.96,7.1918467]
[1727906974606,3.5727,139.97,139.95,6.04]
[1727906974814,17.14,140.01,139.94,2.7763]
[1727906975011,0.12502,140.03,139.95,13.23505888]
[1727906975012,17.14,140.0,139.95,13.23505888]
[1727906975209,17.14,140.0,139.94,2.7763]
[1727906975710,3.5732,139.95,139.94,2.7763]
[1727906975917,3.5732,139.95,139.94,9.97115236]
[1727906976705,23.18,140.02,139.94,9.97115236]
[1727906976921,0.12502,140.03,139.95,24.33332493]
[1727906977219,0.12502,140.03,139.96,13.23332493]
[1727906977514,0.12502,140.03,139.96,6.04]
[1727906977707,0.12502,140.03,139.95,17.14]
[1727906977905,3.5729,139.97,139.94,8.8163]
[1727906978111,17.14,140.0,139.94,8.8163]
[1727906978831,17.14,140.0,139.93,1.001]
[1727906978832,17.14,139.98,139.93,1.001]
[1727906979323,3.5734,139.94,139.93,1.001]
[1727906980126,3.574,139.92,139.91,0.12502]
[1727906980427,20.714,139.92,139.91,0.12502]
[1727906980820,3.574,139.92,139.91,0.12502]
[1727906981916,6.04,139.94,139.91,0.12502]
[1727906982124,17.14,139.96,139.91,0.12502]
[1727906982324,6.04,139.95,139.91,0.12502]
[1727906982620,3.5739,139.93,139.91,0.12502]
[1727906983719,17.14,139.96,139.91,0.12502]
[1727906983917,6.04,139.97,139.91,0.12502]
[1727906984923,3.5736,139.94,139.91,0.12502]
[1727906986327,6.04,139.97,139.91,0.12502]
[1727906986625,3.5737,139.93,139.91,0.12502]
[1727906988626,3.5731,139.96,139.91,3.69912]
[1727906988826,6.04,139.97,139.91,3.69912]
[1727906989733,23.18,139.98,139.91,3.69912]
[1727906990233,3.5735,139.94,139.91,3.69912]
[1727906991233,3.5733,139.95,139.91,3.69912]
[1727906991532,97.83571099,140.07,139.92,23.18]
[1727906991533,17.14,140.01,139.92,23.18]
[1727906991723,3.5736,139.94,139.92,6.04]
[1727906992031,17.14,139.99,139.92,6.04]
[1727906992218,3.573,139.96,139.92,6.04]
[1727906993028,17.14,139.99,139.93,3.5735]
[1727906993231,3.5728,139.97,139.93,3.5735]
[1727906993727,3.5728,139.97,139.92,6.04]
[1727906993928,3.5728,139.97,139.93,3.5736]
[1727906994536,3.5728,139.97,139.94,3.5734]
[1727906996236,17.14,140.0,139.92,6.04]
[1727906996430,3.5726,139.98,139.94,3.5733]
[1727906997131,17.14,140.0,139.94,3.5733]
[1727906997338,17.14,140.0,139.92,23.18]
[1727906997635,17.14,139.99,139.92,6.04]
[1727906998035,3.5732,139.95,139.92,9.6138]
[1727906998929,3.573,139.96,139.93,3.5736]
[1727906999826,3.5732,139.95,139.93,3.5736]
[1727907001137,3.5732,139.95,139.92,6.04]
[1727907001438,3.5735,139.94,139.92,9.6138]
[1727907001632,17.14,139.99,139.92,6.04]
[1727907001840,0.12502,140.03,139.92,23.18]
[1727907002030,17.14,140.01,139.92,23.18]
[1727907002229,17.14,139.99,139.93,6.08]
[1727907002431,3.5729,139.96,139.94,3.5732]
[1727907002729,17.14,140.01,139.93,6.08]
[1727907003037,17.14,140.01,139.93,23.22]
[1727907003336,17.14,139.96,139.91,7.29557859]
[1727907003539,17.14,139.96,139.91,0.12502]
[1727907003540,3.574,139.92,139.91,0.12502]
[1727907003930,20.714,139.92,139.91,0.12502]
[1727907004432,23.22,139.92,139.88,1.001]
[1727907004634,20.7147,139.89,139.88,1.001]
[1727907005536,3.5747,139.89,139.88,1.001]
[1727907006532,20.7147,139.89,139.88,1.001]
[1727907008234,3.5755,139.86,139.85,1.12602]
[1727907008437,7.1464,139.95,139.85,1.12602]
[1727907008640,17.14,139.9,139.85,1.12602]
[1727907008940,3.5755,139.86,139.85,1.12602]
[1727907009937,17.14,139.91,139.85,1.12602]
[1727907010140,23.22,139.91,139.85,1.12602]
[1727907010336,3.5747,139.9,139.85,1.12602]
[1727907010640,23.22,139.91,139.85,1.12602]
[1727907010828,3.5751,139.88,139.85,1.12602]
[1727907011229,23.22,139.91,139.85,1.12602]
[1727907011433,3.5755,139.86,139.85,1.12602]
[1727907011637,20.7155,139.86,139.85,1.12602]